lending/lending_fUSD_20250318
["ID","MTS","AMOUNT","RATE_DAILY","PERIOD"]
[356365397,1742339509916,-500.0,0.00036986,12]
[356365398,1742339509924,-295.0828443,0.00036986,12]
[356365399,1742339509933,-500.0,0.00036986,12]
[356365400,1742339509943,-500.0,0.00036986,12]
[356365401,1742339509952,-500.0,0.00036986,12]
[356365402,1742339509961,-500.0,0.00036986,12]
[356365403,1742339509971,-500.0,0.00036986,12]
[356365404,1742339509980,-500.0,0.00036986,12]
[356365405,1742339509989,-588.08,0.00036986,12]
[356365406,1742339509999,-500.0,0.00036986,12]
[356365407,1742339510008,-539.17,0.00036986,12]
[356365408,1742339510018,-500.0,0.00036986,12]
[356365409,1742339510027,-500.0,0.00036986,12]
[356365410,1742339510037,-500.0,0.00036986,12]
[356365411,1742339510046,-500.0,0.00036986,12]
[356365412,1742339510056,-500.0,0.00036986,12]
[356365413,1742339510065,-500.0,0.00036986,12]
[356365414,1742339510074,-2686.86,0.00036986,12]
[356365415,1742339510083,-956.37,0.00036986,12]
[356365416,1742339510093,-500.0,0.00036986,12]
[356365417,1742339510103,-1521.69,0.00036986,7]
[356365418,1742339510112,-500.0,0.00036986,12]
[356365419,1742339510122,-914.58,0.00036986,12]
[356365420,1742339510130,-500.0,0.00036986,12]
[356365421,1742339510139,-500.0,0.00036986,12]
[356365422,1742339510149,-500.0,0.00036986,12]
[356365423,1742339510157,-537.65,0.00036986,12]
[356365424,1742339510166,-575.78845648,0.00036986,12]
[356365425,1742339510174,-1313.1,0.00036986,12]
[356365426,1742339510183,-543.84473787,0.00036986,12]
[356365427,1742339510192,-500.0,0.00036986,12]
[356365428,1742339510201,-500.0,0.00036986,12]
[356365429,1742339510211,-509.25688146,0.00036986,12]
[356365430,1742339510219,-894.12,0.00036986,12]
[356365431,1742339510228,-500.0,0.00036986,12]
[356365432,1742339510237,-500.0,0.00036986,12]
[356365433,1742339510246,-528.03239199,0.00036986,12]
[356365434,1742339510255,-500.0,0.00036986,12]
[356365435,1742339510263,-500.0,0.00036986,12]
[356365436,1742339510272,-500.0,0.00036986,12]
[356365437,1742339510280,-523.64,0.00036986,12]
[356365438,1742339510289,-508.38504705,0.00036986,12]
[356365439,1742339510298,-519.45361484,0.00036986,12]
[356365440,1742339510307,-500.0,0.00036986,12]
[356365441,1742339510314,-500.0,0.00036986,12]
[356365442,1742339510321,-500.0,0.00036986,12]
[356365443,1742339510328,-500.0,0.00036986,12]
[356365444,1742339510334,-523.91,0.00036986,12]
[356365445,1742339510341,-500.0,0.00036986,12]
[356365446,1742339510348,-845.67,0.00036986,12]
[356365447,1742339510354,-500.0,0.00036986,12]
[356365448,1742339510360,-500.0,0.00036986,12]
[356365449,1742339510367,-1156.08,0.00036986,12]
[356365450,1742339510373,-500.0,0.00036986,12]
[356365451,1742339510380,-500.0,0.00036986,12]
[356365452,1742339510388,-510.37,0.00036986,12]
[356365453,1742339510397,-500.0,0.00036986,12]
[356365454,1742339510406,-500.0,0.00036986,12]
[356365455,1742339510414,-500.0,0.00036986,12]
[356365456,1742339510423,-517.53992051,0.00036986,12]
[356365457,1742339510441,-1175.67,0.00036986,12]
[356365458,1742339510449,-500.0,0.00036986,12]
[356365459,1742339510458,-655.83,0.00036986,12]
[356365460,1742339510467,-1360.65,0.00036986,12]
[356365461,1742339510476,-500.0,0.00036986,12]
[356365462,1742339510485,-584.29,0.00036986,12]
[356365463,1742339510494,-675.44,0.00036986,12]
[356365464,1742339510503,-500.0,0.00036986,12]
[356365465,1742339510511,-500.0,0.00036986,12]
[356365466,1742339510519,-535.37,0.00036986,12]
[356365467,1742339510528,-940.73,0.00036986,12]
[356365468,1742339510537,-500.0,0.00036986,12]
[356365469,1742339510546,-500.0,0.00036986,12]
[356365470,1742339510555,-500.0,0.00036986,12]
[356365471,1742339510564,-661.64,0.00036986,12]
[356365472,1742339510572,-628.6,0.00036986,12]
[356365473,1742339510581,-872.38,0.00036986,12]
[356365474,1742339510590,-429.90828381,0.00036986,12]
[356365475,1742339510599,-671.95,0.00036986,12]
[356365476,1742339510607,-516.50456784,0.00036986,12]
[356365477,1742339510616,-500.0,0.00036986,12]
[356365478,1742339510625,-589.35,0.00036986,12]
[356365479,1742339510634,-500.0,0.00036986,12]
[356365480,1742339510643,-500.0,0.00036986,12]
[356365481,1742339510650,-500.0,0.00036986,12]
[356365482,1742339510657,-500.0,0.00036986,12]
[356365483,1742339510664,-500.0,0.00036986,12]
[356365484,1742339510672,-2111.58,0.00036986,12]
[356365485,1742339510680,-1118.44,0.00036986,12]
[356365486,1742339510688,-500.0,0.00036986,12]
[356365487,1742339510698,-500.0,0.00036986,12]
[356365488,1742339510707,-952.51,0.00036986,12]
[356365489,1742339510717,-500.0,0.00036986,12]
[356365490,1742339510726,-1141.77,0.00036986,12]
[356365491,1742339510736,-509.9,0.00036986,12]
[356365492,1742339510746,-500.0,0.00036986,12]
[356365493,1742339510755,-786.29,0.00036986,12]
[356365494,1742339510764,-885.74,0.00036986,12]
[356365495,1742339510774,-500.0,0.00036986,12]
[356365496,1742339510784,-500.0,0.00036986,12]
[356365497,1742339510797,-853.02,0.00036986,12]
[356365498,1742339510807,-500.0,0.00036986,12]
[356365499,1742339510817,-500.0,0.00036986,12]
[356365500,1742339510826,-500.0,0.00036986,12]
[356365501,1742339510835,-930.16,0.00036986,12]
[356365502,1742339510843,-500.0,0.00036986,12]
[356365503,1742339510851,-534.99,0.00036986,12]
[356365504,1742339510860,-500.0,0.00036986,12]
[356365505,1742339510870,-554.71,0.00036986,12]
[356365506,1742339510879,-500.0,0.00036986,12]
[356365507,1742339510888,-1096.04,0.00036986,12]
[356365508,1742339510899,-500.0,0.00036986,12]
[356365509,1742339510909,-669.21,0.00036986,12]
[356365510,1742339510918,-2116.57,0.00036986,12]
[356365511,1742339510927,-500.0,0.00036986,12]
[356365512,1742339510936,-500.0,0.00036986,12]
[356365513,1742339510946,-500.0,0.00036986,12]
[356365514,1742339510955,-335.9050888,0.00036986,12]
[356365515,1742339510964,-500.0,0.00036986,12]
[356365516,1742339510972,-500.0,0.00036986,12]
[356365517,1742339510980,-824.59,0.00036986,12]
[356365518,1742339510990,-1273.18,0.00036986,12]
[356365519,1742339510999,-500.0,0.00036986,12]
[356365520,1742339511008,-500.0,0.00036986,12]
[356365521,1742339511017,-662.07,0.00036986,12]
[356365522,1742339511026,-1001.65,0.00036986,12]
[356365523,1742339511034,-865.19,0.00036986,12]
[356365524,1742339511043,-500.0,0.00036986,12]
[356365525,1742339511051,-500.0,0.00036986,12]
[356365526,1742339511060,-569.57,0.00036986,12]
[356365527,1742339511069,-850.25,0.00036986,12]
[356365528,1742339511078,-2025.31,0.00036986,12]
[356365529,1742339511087,-500.0,0.00036986,12]
[356365530,1742339511095,-500.0,0.00036986,12]
[356365531,1742339511104,-500.0,0.00036986,12]
[356365532,1742339511114,-500.0,0.00036986,12]
[356365533,1742339511123,-500.0,0.00036986,12]
[356365534,1742339511131,-1125.43,0.00036986,12]
[356365535,1742339511140,-1034.97,0.00036986,12]
[356365536,1742339511150,-736.13,0.00036986,12]
[356365537,1742339511159,-500.0,0.00036986,12]
[356365538,1742339511167,-500.0,0.00036986,12]
[356365539,1742339511176,-500.0,0.00036986,12]
[356365540,1742339511183,-500.0,0.00036986,12]
[356365541,1742339511191,-365.67764237,0.00036986,12]
[356365542,1742339511197,-337.69156184,0.00036986,12]
[356365543,1742339511205,-500.0,0.00036986,12]
[356365544,1742339511212,-378.45022844,0.00036986,12]
[356365545,1742339511219,-705.75,0.00036986,12]
[356365546,1742339511225,-500.0,0.00036986,12]
[356365547,1742339511232,-1168.81,0.00036986,12]
[356365548,1742339511238,-505.36657536,0.00036986,12]
[356365549,1742339511244,-500.0,0.00036986,12]
[356365550,1742339511251,-500.0,0.00036986,12]
[356365551,1742339511257,-909.53,0.00036986,12]
[356365552,1742339511264,-1214.66,0.00036986,12]
[356365553,1742339511270,-750.56,0.00036986,12]
[356365554,1742339511276,-430.21820814,0.00036986,12]
[356365555,1742339511283,-2000.0,0.00036986,30]
[356365556,1742339511289,-500.0,0.00036986,12]
[356365557,1742339511296,-500.0,0.00036986,12]
[356365558,1742339511304,-999.43,0.00036986,12]
[356365559,1742339511310,-200.0,0.00036986,7]
[356365560,1742339511316,-500.0,0.00036986,12]
[356365561,1742339511324,-512.86787116,0.00036986,12]
[356365562,1742339511330,-912.96,0.00036986,12]
[356365563,1742339511337,-500.0,0.00036986,12]
[356365564,1742339511343,-628.87,0.00036986,12]
[356365565,1742339511350,-500.0,0.00036986,12]
[356365566,1742339511356,-1022.31,0.00036986,12]
[356365567,1742339511362,-500.0,0.00036986,12]
[356365568,1742339511370,-500.0,0.00036986,12]
[356365569,1742339511376,-664.59,0.00036986,12]
[356365570,1742339511382,-970.21,0.00036986,12]
[356365571,1742339511389,-500.0,0.00036986,12]
[356365572,1742339511396,-605.69,0.00036986,12]
[356365573,1742339511405,-1253.42,0.00036986,12]
[356365574,1742339511413,-1388.92,0.00036986,12]
[356365575,1742339511420,-500.0,0.00036986,12]
[356365576,1742339511426,-500.0,0.00036986,12]
[356365577,1742339511433,-500.0,0.00036986,12]
[356365578,1742339511440,-500.0,0.00036986,12]
[356365579,1742339511446,-500.0,0.00036986,12]
[356365580,1742339511453,-500.0,0.00036986,12]
[356365581,1742339511462,-1024.33,0.00036986,12]
[356365582,1742339511471,-500.0,0.00036986,12]
[356365583,1742339511479,-603.22,0.00036986,12]
[356365584,1742339511488,-747.21,0.00036986,12]
[356365585,1742339511497,-500.0,0.00036986,12]
[356365586,1742339511506,-500.0,0.00036986,12]
[356365587,1742339511516,-500.0,0.00036986,12]
[356365588,1742339511524,-500.0,0.00036986,12]
[356365589,1742339511533,-1242.02,0.00036986,12]
[356365590,1742339511542,-500.0,0.00036986,12]
[356365591,1742339511551,-843.17,0.00036986,12]
[356365592,1742339511559,-500.0,0.00036986,12]
[356365593,1742339511568,-535.11,0.00036986,12]
[356365594,1742339511579,-532.91,0.00036986,12]
[356365595,1742339511587,-500.0,0.00036986,12]
[356365596,1742339511596,-500.0,0.00036986,12]
[356365597,1742339511605,-536.51,0.00036986,7]
[356365598,1742339511614,-864.22,0.00036986,12]
[356365599,1742339511623,-500.0,0.00036986,12]
[356365600,1742339511632,-500.0,0.00036986,12]
[356365601,1742339511643,-500.0,0.00036986,12]
[356365602,1742339511652,-500.0,0.00036986,12]
[356365603,1742339511661,-300.0,0.00036986,2]
[356365604,1742339511670,-500.0,0.00036986,12]
[356365605,1742339511679,-838.26,0.00036986,12]
[356365606,1742339511689,-500.0,0.00036986,12]
[356365607,1742339511698,-500.0,0.00036986,12]
[356365608,1742339511707,-1425.59,0.00036986,12]
[356365609,1742339511717,-500.0,0.00036986,12]
[356365610,1742339511727,-500.0,0.00036986,12]
[356365611,1742339511736,-500.0,0.00036986,12]
[356365612,1742339511746,-1035.77,0.00036986,12]
[356365613,1742339511756,-1119.9,0.00036986,12]
[356365614,1742339511765,-604.31458795,0.00036986,12]
[356365615,1742339511775,-500.0,0.00036986,12]
[356365616,1742339511788,-503.2225245,0.00036986,12]
[356365617,1742339511798,-940.64,0.00036986,12]
[356365618,1742339511808,-500.0,0.00036986,12]
[356365619,1742339511817,-500.0,0.00036986,12]
[356365620,1742339511829,-500.0,0.00036986,12]
[356365621,1742339511838,-757.19,0.00036986,12]
[356365622,1742339511847,-500.0,0.00036986,12]
[356365623,1742339511856,-500.0,0.00036986,12]
[356365624,1742339511866,-500.0,0.00036986,12]
[356365625,1742339511876,-1602.15,0.00036986,12]
[356365626,1742339511886,-1002.8,0.00036986,12]
[356365627,1742339511898,-1198.43,0.00036986,12]
[356365628,1742339511908,-1331.13,0.00036986,12]
[356365629,1742339511918,-500.0,0.00036986,12]
[356365630,1742339511928,-500.0,0.00036986,12]
[356365631,1742339511937,-500.0,0.00036986,12]
[356365632,1742339511948,-649.81,0.00036986,12]
[356365633,1742339511958,-500.0,0.00036986,12]
[356365634,1742339511967,-500.0,0.00036986,12]
[356365635,1742339511977,-999.15,0.00036986,12]
[356365636,1742339511986,-2598.97,0.00036986,12]
[356365637,1742339511997,-500.0,0.00036986,12]
[356365638,1742339512007,-3644.21,0.00036986,12]
[356365639,1742339512017,-500.0,0.00036986,12]
[356365640,1742339512027,-417.74499613,0.00036986,12]
[356365641,1742339512036,-500.0,0.00036986,12]
[356365642,1742339512046,-500.0,0.00036986,12]
[356365643,1742339512056,-1387.99,0.00036986,12]
[356365644,1742339512066,-843.24,0.00036986,12]
[356365645,1742339512075,-500.0,0.00036986,12]
[356365646,1742339512085,-2465.62,0.00036986,12]
[356365647,1742339512095,-975.0,0.00036986,12]
[356365648,1742339512105,-609.77,0.00036986,12]
[356365649,1742339512114,-500.0,0.00036986,12]
[356365650,1742339512124,-1078.91,0.00036986,12]
[356365651,1742339512134,-974.58,0.00036986,12]
[356365652,1742339512144,-545.09877368,0.00036986,12]
[356365653,1742339512153,-2236.78,0.00036986,12]
[356365654,1742339512163,-1919.16,0.00036986,12]
[356365655,1742339512173,-2066.04,0.00036986,12]
[356365656,1742339512183,-1744.56,0.00036986,12]
[356365657,1742339512192,-924.09,0.00036986,12]
[356365658,1742339512202,-965.89,0.00036986,12]
[356365659,1742339512212,-630.53,0.00036986,12]
[356365660,1742339512222,-500.0,0.00036986,12]
[356365661,1742339512231,-2170.13,0.00036986,7]
[356365662,1742339512240,-500.0,0.00036986,12]
[356365663,1742339512250,-500.0,0.00036986,12]
[356365664,1742339512260,-500.0,0.00036986,12]
[356365665,1742339512269,-4236.85,0.00036986,12]
[356365666,1742339512278,-563.97525333,0.00036986,12]
[356365667,1742339512288,-207.91829466,0.00036986,12]
[356365668,1742339512297,-701.55,0.00036986,12]
[356365669,1742339512307,-940.24,0.00036986,12]
[356365670,1742339512317,-2071.16,0.00036986,12]
[356365671,1742339512326,-2364.63,0.00036986,12]
[356365672,1742339512335,-833.55,0.00036986,12]
[356365673,1742339512345,-1084.3,0.00036986,12]
[356365674,1742339512354,-1166.33,0.00036986,12]
[356365675,1742339512363,-500.0,0.00036986,12]
[356365676,1742339512372,-500.0,0.00036986,12]
[356365677,1742339512382,-500.0,0.00036986,12]
[356365678,1742339512391,-1018.16,0.00036986,12]
[356365679,1742339512401,-500.0,0.00036986,12]
[356365680,1742339512411,-500.0,0.00036986,12]
[356365681,1742339512421,-3791.02,0.00036986,12]
[356365682,1742339512431,-722.87,0.00036986,12]
[356365683,1742339512441,-591.18,0.00036986,12]
[356365684,1742339512448,-627.35,0.00036986,12]
[356365685,1742339512455,-433.99,0.00036986,12]
[356365686,1742339512464,-2218.35,0.00036986,12]
[356365687,1742339512471,-500.0,0.00036986,12]
[356365688,1742339512480,-500.0,0.00036986,12]
[356365689,1742339512487,-2207.71,0.00036986,12]
[356365690,1742339512497,-1038.13,0.00036986,12]
[356365691,1742339512504,-7286.97,0.00036986,2]
[356365692,1742339512511,-500.0,0.00036986,12]
[356365693,1742339512520,-500.0,0.00036986,12]
[356365694,1742339512527,-500.0,0.00036986,12]
[356365695,1742339512535,-4093.1,0.00036986,12]
[356365696,1742339512543,-662.54,0.00036986,12]
[356365697,1742339512551,-500.0,0.00036986,12]
[356365698,1742339512559,-500.0,0.00036986,12]
[356365699,1742339512567,-617.61,0.00036986,12]
[356365700,1742339512575,-884.25,0.00036986,12]
[356365701,1742339512583,-568.35,0.00036986,12]
[356365702,1742339512591,-500.0,0.00036986,12]
[356365703,1742339512598,-500.0,0.00036986,12]
[356365704,1742339512606,-2314.16,0.00036986,12]
[356365705,1742339512614,-1249.76,0.00036986,12]
[356365706,1742339512621,-590.8,0.00036986,12]
[356365707,1742339512629,-605.74,0.00036986,12]
[356365708,1742339512637,-4019.27,0.00036986,12]
[356365709,1742339512646,-248.75831575,0.00036986,12]
[356365710,1742339512653,-845.44,0.00036986,12]
[356365711,1742339512661,-500.0,0.00036986,12]
[356365712,1742339512671,-500.0,0.00036986,12]
[356365713,1742339512682,-500.0,0.00036986,12]
[356365714,1742339512692,-500.0,0.00036986,12]
[356365715,1742339512703,-500.0,0.00036986,12]
[356365716,1742339512713,-500.0,0.00036986,12]
[356365717,1742339512724,-1263.79,0.00036986,12]
[356365718,1742339512734,-500.0,0.00036986,12]
[356365719,1742339512745,-722.51,0.00036986,12]
[356365720,1742339512754,-500.0,0.00036986,12]
[356365721,1742339512764,-841.11,0.00036986,12]
[356365722,1742339512776,-582.04,0.00036986,12]
[356365723,1742339512787,-713.87,0.00036986,12]
[356365724,1742339512800,-1361.67,0.00036986,12]
[356365725,1742339512810,-1473.86,0.00036986,12]
[356365726,1742339512820,-1912.63,0.00036986,12]
[356365727,1742339512831,-500.0,0.00036986,12]
[356365728,1742339512841,-636.03359029,0.00036986,12]
[356365729,1742339512851,-500.0,0.00036986,12]
[356365730,1742339512863,-635.53,0.00036986,12]
[356365731,1742339512875,-714.31,0.00036986,12]
[356365732,1742339512885,-1883.04,0.00036986,12]
[356365733,1742339512895,-500.0,0.00036986,12]
[356365734,1742339512905,-500.0,0.00036986,12]
[356365735,1742339512915,-5988.8,0.00036986,12]
[356365736,1742339512926,-500.0,0.00036986,12]
[356365737,1742339512936,-2180.97,0.00036986,10]
[356365738,1742339512946,-1955.72,0.00036986,12]
[356365739,1742339512956,-2131.38,0.00036986,12]
[356365740,1742339512967,-6906.57,0.00036986,12]
[356365741,1742339512977,-500.0,0.00036986,12]
[356365742,1742339512987,-713.4,0.00036986,12]
[356365743,1742339512997,-758.94,0.00036986,12]
[356365744,1742339513008,-1357.37,0.00036986,12]
[356365745,1742339513018,-500.0,0.00036986,12]
[356365746,1742339513029,-500.0,0.00036986,12]
[356365747,1742339513040,-517.02,0.00036986,12]
[356365748,1742339513051,-1496.75,0.00036986,12]
[356365749,1742339513061,-1214.53,0.00036986,12]
[356365750,1742339513071,-500.0,0.00036986,12]
[356365751,1742339513082,-500.0,0.00036986,12]
[356365752,1742339513092,-500.0,0.00036986,12]
[356365753,1742339513102,-506.64290998,0.00036986,12]
[356365754,1742339513113,-2414.38,0.00036986,12]
[356365755,1742339513123,-500.0,0.00036986,12]
[356365756,1742339513134,-1375.9,0.00036986,12]
[356365757,1742339513145,-1974.79,0.00036986,12]
[356365758,1742339513156,-925.56,0.00036986,12]
[356365759,1742339513166,-712.94,0.00036986,12]
[356365760,1742339513177,-839.12,0.00036986,12]
[356365761,1742339513188,-574.16599904,0.00036986,12]
[356365762,1742339513198,-1067.84,0.00036986,12]
[356365763,1742339513209,-1426.33,0.00036986,12]
[356365764,1742339513219,-767.88,0.00036986,12]
[356365765,1742339513229,-1432.86,0.00036986,12]
[356365766,1742339513239,-780.68,0.00036986,12]
[356365767,1742339513250,-1216.8,0.00036986,12]
[356365768,1742339513260,-1487.69,0.00036986,12]
[356365769,1742339513270,-507.7084934,0.00036986,12]
[356365770,1742339513281,-500.0,0.00036986,12]
[356365771,1742339513291,-1072.64,0.00036986,12]
[356365772,1742339513302,-1708.8,0.00036986,12]
[356365773,1742339513312,-500.0,0.00036986,12]
[356365774,1742339513323,-674.04,0.00036986,12]
[356365775,1742339513334,-500.0,0.00036986,12]
[356365776,1742339513345,-913.22,0.00036986,12]
[356365777,1742339513355,-1017.99,0.00036986,12]
[356365778,1742339513365,-1929.03,0.00036986,12]
[356365779,1742339513376,-902.37,0.00036986,12]
[356365780,1742339513387,-2290.36,0.00036986,12]
[356365781,1742339513398,-1430.23,0.00036986,12]
[356365782,1742339513408,-500.0,0.00036986,12]
[356365783,1742339513419,-500.0,0.00036986,12]
[356365784,1742339513428,-500.0,0.00036986,12]
[356365785,1742339513438,-1760.11,0.00036986,12]
[356365786,1742339513448,-1638.63,0.00036986,12]
[356365787,1742339513458,-509.4552862,0.00036986,12]
[356365788,1742339513468,-794.12,0.00036986,12]
[356365789,1742339513479,-1729.5,0.00036986,12]
[356365790,1742339513488,-500.0,0.00036986,12]
[356365791,1742339513498,-682.57,0.00036986,12]
[356365792,1742339513508,-1045.11,0.00036986,12]
[356365793,1742339513518,-500.0,0.00036986,12]
[356365794,1742339513528,-1395.45,0.00036986,12]
[356365795,1742339513538,-1231.14,0.00036986,12]
[356365796,1742339513548,-1432.26,0.00036986,12]
[356365797,1742339513558,-1130.18,0.00036986,12]
[356365798,1742339513568,-500.0,0.00036986,12]
[356365799,1742339513817,-1071.53,0.00036986,12]
[356365800,1742339513866,-500.0,0.00036986,12]
[356365801,1742339513877,-10881.54,0.00036986,12]
[356365802,1742339513886,-940.53,0.00036986,12]
[356365803,1742339513895,-931.98,0.00036986,12]
[356365804,1742339513905,-643.93,0.00036986,12]
[356365805,1742339513915,-736.61,0.00036986,12]
[356365806,1742339513925,-1889.22,0.00036986,12]
[356365807,1742339513934,-500.0,0.00036986,12]
[356365808,1742339513944,-1912.43,0.00036986,12]
[356365809,1742339513954,-1500.0,0.00036986,12]
[356365810,1742339513964,-500.0,0.00036986,12]
[356365811,1742339513973,-867.89,0.00036986,12]
[356365812,1742339513983,-655.9,0.00036986,12]
[356365813,1742339513992,-3492.09,0.00036986,12]
[356365814,1742339514002,-8347.58,0.00036986,12]
[356365815,1742339514011,-982.97,0.00036986,12]
[356365816,1742339514021,-793.27,0.00036986,12]
[356365817,1742339514030,-500.0,0.00036986,12]
[356365818,1742339514039,-2617.2,0.00036986,12]
[356365819,1742339514049,-500.0,0.00036986,12]
[356365820,1742339514059,-500.0,0.00036986,12]
[356365821,1742339514068,-500.0,0.00036986,12]
[356365822,1742339514078,-500.0,0.00036986,12]
[356365823,1742339514087,-674.83,0.00036986,12]
[356365824,1742339514097,-2613.79,0.00036986,12]
[356365825,1742339514106,-1198.65,0.00036986,12]
[356365826,1742339514116,-500.0,0.00036986,12]
[356365827,1742339514125,-500.0,0.00036986,12]
[356365828,1742339514135,-1104.92,0.00036986,12]
[356365829,1742339514143,-1000.0,0.00036986,12]
[356365830,1742339514152,-500.0,0.00036986,120]
[356365831,1742339514161,-1351.56,0.00036986,12]
[356365832,1742339514170,-500.0,0.00036986,12]
[356365833,1742339514179,-573.24,0.00036986,12]
[356365834,1742339514189,-1155.96,0.00036986,12]
[356365835,1742339514198,-592.77,0.00036986,12]
[356365836,1742339514208,-678.37,0.00036986,12]
[356365837,1742339514218,-819.5,0.00036986,12]
[356365838,1742339514227,-1747.47,0.00036986,12]
[356365839,1742339514237,-881.57,0.00036986,12]
[356365840,1742339514246,-733.05,0.00036986,12]
[356365841,1742339514255,-566.73,0.00036986,12]
[356365842,1742339514264,-513.95379032,0.00036986,12]
[356365843,1742339514274,-779.59,0.00036986,12]
[356365844,1742339514283,-700.61,0.00036986,12]
[356365845,1742339514292,-500.0,0.00036986,12]
[356365846,1742339514302,-500.0,0.00036986,12]
[356365847,1742339514312,-6201.97,0.00036986,12]
[356365848,1742339514322,-500.0,0.00036986,12]
[356365849,1742339514332,-2724.32,0.00036986,12]
[356365850,1742339514341,-500.0,0.00036986,12]
[356365851,1742339514351,-673.71,0.00036986,12]
[356365852,1742339514361,-500.0,0.00036986,6]
[356365853,1742339514370,-634.03,0.00036986,12]
[356365854,1742339514379,-1388.66,0.00036986,12]
[356365855,1742339514389,-1201.66,0.00036986,12]
[356365856,1742339514399,-500.0,0.00036986,12]
[356365857,1742339514409,-789.17,0.00036986,12]
[356365858,1742339514419,-500.0,0.00036986,12]
[356365859,1742339514428,-500.0,0.00036986,12]
[356365860,1742339514437,-500.0,0.00036986,12]
[356365861,1742339514447,-765.41,0.00036986,12]
[356365862,1742339514457,-637.48,0.00036986,12]
[356365863,1742339514467,-1408.89,0.00036986,12]
[356365864,1742339514476,-1079.25,0.00036986,12]
[356365865,1742339514485,-500.0,0.00036986,12]
[356365866,1742339514494,-629.47,0.00036986,12]
[356365867,1742339514504,-500.0,0.00036986,12]
[356365868,1742339514514,-500.0,0.00036986,12]
[356365869,1742339514523,-500.0,0.00036986,12]
[356365870,1742339514533,-2483.39,0.00036986,12]
[356365871,1742339514542,-500.0,0.00036986,12]
[356365872,1742339514552,-818.98,0.00036986,12]
[356365873,1742339514562,-8678.86,0.00036986,12]
[356365874,1742339514571,-500.0,0.00036986,12]
[356365875,1742339514581,-500.0,0.00036986,12]
[356365876,1742339514591,-500.0,0.00036986,12]
[356365877,1742339514601,-852.66,0.00036986,12]
[356365878,1742339514610,-500.0,0.00036986,12]
[356365879,1742339514619,-1387.5,0.00036986,12]
[356365880,1742339514629,-609.81,0.00036986,12]
[356365881,1742339514639,-500.0,0.00036986,12]
[356365882,1742339514650,-1940.56,0.00036986,12]
[356365883,1742339514659,-5124.49,0.00036986,12]
[356365884,1742339514669,-982.22,0.00036986,12]
[356365885,1742339514679,-500.0,0.00036986,12]
[356365886,1742339514688,-848.28,0.00036986,12]
[356365887,1742339514698,-555.67,0.00036986,12]
[356365888,1742339514707,-500.0,0.00036986,12]
[356365889,1742339514716,-610.21,0.00036986,12]
[356365890,1742339514726,-797.64,0.00036986,12]
[356365891,1742339514735,-500.0,0.00036986,12]
[356365892,1742339514746,-1404.74,0.00036986,12]
[356365893,1742339514756,-500.0,0.00036986,12]
[356365894,1742339514767,-511.83405543,0.00036986,12]
[356365895,1742339514778,-570.46,0.00036986,12]
[356365896,1742339514790,-626.53,0.00036986,12]